Workbook

Sheet תשתית והסברים
B7: נתונים | G7: שלבי הביצוע | Q7: התוצאה הסופית
Q8: טבלת הפיווט, שמזינה את הדוח. יכולה להימצא בכל מקום בחוברת העבודה (כלומר, לא חייבת להופיע צמוד לדוח עצמו)
B9: תאריך | C9: ערך | D9: קוד לקוח | E9: תקופה
B10: 2012-05-17 | C10: 7356.11 | D10: Cust_0002 | E10: 201205 | Q10: Sum of ערך | R10: Column Labels
B11: 2012-05-17 | C11: 2796.1 | D11: Cust_0004 | E11: 201205 | Q11: Row Labels | R11: 200007 | S11: 200008 | T11: 200009 | U11: 200010 | V11: 200011 | W11: 200012 | X11: 200101 | Y11: 200102 | Z11: 200103 | AA11: 200104 | AB11: 200105 | AC11: 200106 | AD11: 200107 | AE11: 200108 | AF11: 200109 | AG11: 200110 | AH11: 200111 | AI11: 200112 | AJ11: 200201 | AK11: 200202 | AL11: 200203 | AM11: 200204 | AN11: 200205 | AO11: 200206 | AP11: 200207 | AQ11: 200208 | AR11: 200209 | AS11: 200210 | AT11: 200211 | AU11: 200212 | AV11: 200301 | AW11: 200302 | AX11: 200303 | AY11: 200304 | AZ11: 200305 | BA11: 200306 | BB11: 200307 | BC11: 200308 | BD11: 200309 | BE11: 200310 | BF11: 200311 | BG11: 200312 | BH11: 200401 | BI11: 200402 | BJ11: 200403 | BK11: 200404 | BL11: 200405 | BM11: 200406 | BN11: 200407 | BO11: 200408 | BP11: 200409 | BQ11: 200410 | BR11: 200411 | BS11: 200412 | BT11: 200501 | BU11: 200502 | BV11: 200503 | BW11: 200504 | BX11: 200505 | BY11: 200506 | BZ11: 200507 | CA11: 200508 | CB11: 200509 | CC11: 200510 | CD11: 200511 | CE11: 200512 | CF11: 200601 | CG11: 200602 | CH11: 200603 | CI11: 200604 | CJ11: 200605 | CK11: 200606 | CL11: 200607 | CM11: 200608 | CN11: 200609 | CO11: 200610 | CP11: 200611 | CQ11: 200612 | CR11: 200701 | CS11: 200702 | CT11: 200703 | CU11: 200704 | CV11: 200705 | CW11: 200706 | CX11: 200707 | CY11: 200708 | CZ11: 200709 | DA11: 200710 | DB11: 200711 | DC11: 200712 | DD11: 200801 | DE11: 200802 | DF11: 200803 | DG11: 200804 | DH11: 200805 | DI11: 200806 | DJ11: 200807 | DK11: 200808 | DL11: 200809 | DM11: 200810 | DN11: 200811 | DO11: 200812 | DP11: 200901 | DQ11: 200902 | DR11: 200903 | DS11: 200904 | DT11: 200905 | DU11: 200906 | DV11: 200907 | DW11: 200908 | DX11: 200909 | DY11: 200910 | DZ11: 200911 | EA11: 200912 | EB11: 201001 | EC11: 201002 | ED11: 201003 | EE11: 201004 | EF11: 201005 | EG11: 201006 | EH11: 201007 | EI11: 201008 | EJ11: 201009 | EK11: 201010 | EL11: 201011 | EM11: 201012 | EN11: 201101 | EO11: 201102 | EP11: 201103 | EQ11: 201104 | ER11: 201105 | ES11: 201106 | ET11: 201107 | EU11: 201108 | EV11: 201109 | EW11: 201110 | EX11: 201111 | EY11: 201112 | EZ11: 201201 | FA11: 201202 | FB11: 201203 | FC11: 201204 | FD11: 201205 | FE11: Grand Total
B12: 2012-05-17 | C12: 6029.06 | D12: Cust_0002 | E12: 201205 | Q12: Cust_0001 | R12: 6523.49 | S12: 9819.65 | T12: 15848.5 | U12: 15848.5 | V12: 36675.18 | W12: 45556.88 | X12: 45556.88 | Y12: 52777.88 | Z12: 63489.83 | AA12: 67564.36 | AB12: 79393.17 | AC12: 81123.81 | AD12: 82838.34 | AE12: 94233.47 | AF12: 104725.44 | AG12: 104725.44 | AH12: 104725.44 | AI12: 112549.29 | AJ12: 136915.51 | AK12: 136915.51 | AL12: 146302.42 | AM12: 150426.77 | AN12: 164081.5 | AO12: 172608.21 | AP12: 173661.06 | AQ12: 185974.65 | AR12: 194956.36 | AS12: 203851.08 | AT12: 204217.78 | AU12: 210735.76 | AV12: 217575.12 | AW12: 226889.75 | AX12: 252027.79 | AY12: 256586.36 | AZ12: 264744.73 | BA12: 273520.3 | BB12: 273520.3 | BC12: 273520.3 | BD12: 273520.3 | BE12: 282520.42 | BF12: 290968.32 | BG12: 310154.78 | BH12: 323536.19 | BI12: 323536.19 | BJ12: 323536.19 | BK12: 329773.94 | BL12: 329773.94 | BM12: 339186.07 | BN12: 347263.1 | BO12: 354539.17 | BP12: 378035.86 | BQ12: 383234.62 | BR12: 393112.67 | BS12: 402018.69 | BT12: 407800.46 | BU12: 418123.88 | BV12: 427322.53 | BW12: 427322.53 | BX12: 427322.53 | BY12: 431826.63 | BZ12: 433570.85 | CA12: 436785.33 | CB12: 451590.36 | CC12: 451590.36 | CD12: 463156.18 | CE12: 488660.5 | CF12: 498956.57 | CG12: 509203.03 | CH12: 520247.4 | CI12: 520247.4 | CJ12: 528944.23 | CK12: 528944.23 | CL12: 535170.15 | CM12: 542982.05 | CN12: 542982.05 | CO12: 543742.35 | CP12: 546466.99 | CQ12: 550582.38 | CR12: 564413.78 | CS12: 567591.17 | CT12: 585328.71 | CU12: 589143.31 | CV12: 598265.77 | CW12: 616600.33 | CX12: 616600.33 | CY12: 617439.37 | CZ12: 617439.37 | DA12: 617439.37 | DB12: 617439.37 | DC12: 634914.61 | DD12: 643142.19 | DE12: 675205.44 | DF12: 677254.57 | DG12: 684649.9 | DH12: 688369.33 | DI12: 694245.15 | DJ12: 703009.65 | DK12: 703009.65 | DL12: 718485.99 | DM12: 718485.99 | DN12: 736631.11 | DO12: 752507.88 | DP12: 752507.88 | DQ12: 766443.38 | DR12: 766443.38 | DS12: 770078.88 | DT12: 773649.01 | DU12: 795864.7 | DV12: 795864.7 | DW12: 802936.38 | DX12: 811566.99 | DY12: 831120.7 | DZ12: 831321.28 | EA12: 839590.76 | EB12: 860709.77 | EC12: 860709.77 | ED12: 878037.27 | EE12: 914390.35 | EF12: 914390.35 | EG12: 942478.63 | EH12: 956746.5 | EI12: 971848.17 | EJ12: 971848.17 | EK12: 976068.48 | EL12: 978266.23 | EM12: 983653.59 | EN12: 1003792.7 | EO12: 1003792.7 | EP12: 1025754.63 | EQ12: 1045148.46 | ER12: 1073291.51 | ES12: 1084693.39 | ET12: 1087784.81 | EU12: 1090906.24 | EV12: 1108384.8 | EW12: 1112091.88 | EX12: 1121111.8 | EY12: 1136008.87 | EZ12: 1136008.87 | FA12: 1146852.11 | FB12: 1153688.78 | FC12: 1162822.28 | FD12: 1180531.85
B13: 2012-05-17 | C13: 8490.65 | D13: Cust_0001 | E13: 201205 | Q13: Cust_0002 | R13: 6652.95 | S13: 16076.83 | T13: 22094.35 | U13: 53846.26 | V13: 58645.8 | W13: 67456.93 | X13: 77858.28 | Y13: 83609.18 | Z13: 83609.18 | AA13: 106947.34 | AB13: 128664.06 | AC13: 171242.08 | AD13: 191080.86 | AE13: 207943.83 | AF13: 223278.21 | AG13: 246353.72 | AH13: 254339.93 | AI13: 266119 | AJ13: 292097.11 | AK13: 292097.11 | AL13: 297584.41 | AM13: 321962.83 | AN13: 351526.61 | AO13: 378194.52 | AP13: 415060.61 | AQ13: 424255.96 | AR13: 450993.12 | AS13: 465426.56 | AT13: 471694.91 | AU13: 505413.63 | AV13: 518337.27 | AW13: 527427.38 | AX13: 546239.96 | AY13: 560011.33 | AZ13: 595506.16 | BA13: 601565.21 | BB13: 622201.8 | BC13: 634664.01 | BD13: 634664.01 | BE13: 648925.47 | BF13: 661041.1 | BG13: 674876.7 | BH13: 686504.05 | BI13: 719988.54 | BJ13: 735773.49 | BK13: 753125.37 | BL13: 762440.09 | BM13: 769150.67 | BN13: 785781.04 | BO13: 792358.13 | BP13: 806433.97 | BQ13: 806433.97 | BR13: 812480.87 | BS13: 852836.96 | BT13: 880976.25 | BU13: 897949.41 | BV13: 902356.32 | BW13: 903647.51 | BX13: 913934.42 | BY13: 914337.91 | BZ13: 939535.55 | CA13: 979485.41 | CB13: 990418.8 | CC13: 1012644.35 | CD13: 1023067.52 | CE13: 1048462.79 | CF13: 1054850.2 | CG13: 1086060.38 | CH13: 1099355.96 | CI13: 1123529.44 | CJ13: 1152448.1 | CK13: 1183603.01 | CL13: 1215702.61 | CM13: 1272249.72 | CN13: 1285440.67 | CO13: 1303628.55 | CP13: 1320347.73 | CQ13: 1328091.33 | CR13: 1336008.88 | CS13: 1357461.88 | CT13: 1366841.82 | CU13: 1368668.5 | CV13: 1382113.51 | CW13: 1401358.52 | CX13: 1401358.52 | CY13: 1411498.37 | CZ13: 1412380.32 | DA13: 1425367.32 | DB13: 1443159.22 | DC13: 1457630.47 | DD13: 1483504.71 | DE13: 1485752.45 | DF13: 1488054.05 | DG13: 1507241.84 | DH13: 1514816.61 | DI13: 1515502.87 | DJ13: 1523282 | DK13: 1533700.44 | DL13: 1554120.93 | DM13: 1576267.49 | DN13: 1592557.74 | DO13: 1607352.8 | DP13: 1631689.35 | DQ13: 1667173.97 | DR13: 1670389.68 | DS13: 1687301.56 | DT13: 1706663.3 | DU13: 1720241.39 | DV13: 1736133.32 | DW13: 1759743.91 | DX13: 1765521.25 | DY13: 1770699.92 | DZ13: 1782858.28 | EA13: 1793371.03 | EB13: 1802991.87 | EC13: 1812435.67 | ED13: 1817514.36 | EE13: 1835126.31 | EF13: 1858565.16 | EG13: 1879589.05 | EH13: 1887769.75 | EI13: 1895736.28 | EJ13: 1903687.7 | EK13: 1928299.46 | EL13: 1948545.27 | EM13: 1957176.04 | EN13: 1965725.07 | EO13: 1984352.83 | EP13: 2003425.91 | EQ13: 2028396.1 | ER13: 2039548.14 | ES13: 2045003.58 | ET13: 2050787.98 | EU13: 2053289.13 | EV13: 2067987.96 | EW13: 2079395.42 | EX13: 2079395.42 | EY13: 2099906.83 | EZ13: 2143098.35 | FA13: 2187252.53 | FB13: 2191081.64 | FC13: 2215068.68 | FD13: 2237936.81
B14: 2012-05-12 | C14: 215.33 | D14: Cust_0004 | E14: 201205 | Q14: Cust_0003 | R14: 8951.97 | S14: 33645.1 | T14: 53443.9 | U14: 62896.39 | V14: 73209.46 | W14: 99749.91 | X14: 126276.84 | Y14: 133667.16 | Z14: 156573.21 | AA14: 156573.21 | AB14: 183374.72 | AC14: 189337.25 | AD14: 207792.45 | AE14: 237422 | AF14: 247735.25 | AG14: 275743.78 | AH14: 301712.02 | AI14: 306922.35 | AJ14: 329801.06 | AK14: 352523.71 | AL14: 406717.59 | AM14: 410621.93 | AN14: 432181.16 | AO14: 443331.58 | AP14: 459563.25 | AQ14: 460789.5 | AR14: 468347.63 | AS14: 488670.75 | AT14: 497119.5 | AU14: 516839.12 | AV14: 523975.25 | AW14: 529611.45 | AX14: 554364.27 | AY14: 588753.45 | AZ14: 593934.78 | BA14: 610811.89 | BB14: 623844.29 | BC14: 630571.53 | BD14: 659666.84 | BE14: 666798.28 | BF14: 666798.28 | BG14: 700080.37 | BH14: 724584.67 | BI14: 726543.12 | BJ14: 745345.48 | BK14: 771735.67 | BL14: 781937.93 | BM14: 799200.66 | BN14: 816896.11 | BO14: 837608.4 | BP14: 859840.59 | BQ14: 877824.78 | BR14: 891412.34 | BS14: 916752.14 | BT14: 927757.24 | BU14: 940176.14 | BV14: 953162.93 | BW14: 989248.3 | BX14: 1007878.63 | BY14: 1027829.15 | BZ14: 1045935.04 | CA14: 1065378.6 | CB14: 1076742.94 | CC14: 1092945.78 | CD14: 1107634.82 | CE14: 1125398.65 | CF14: 1157319.58 | CG14: 1166981.87 | CH14: 1207092.83 | CI14: 1215673.16 | CJ14: 1258463.11 | CK14: 1268354.68 | CL14: 1269729.89 | CM14: 1294830.14 | CN14: 1342074.44 | CO14: 1359570.16 | CP14: 1377160.06 | CQ14: 1399258.54 | CR14: 1419675.18 | CS14: 1450903.26 | CT14: 1457845.51 | CU14: 1468762.07 | CV14: 1478901.74 | CW14: 1479107.26 | CX14: 1498476.15 | CY14: 1517509.43 | CZ14: 1530727.14 | DA14: 1543331.91 | DB14: 1554952.59 | DC14: 1571086.89 | DD14: 1588334.66 | DE14: 1595128.97 | DF14: 1609911.69 | DG14: 1633507.13 | DH14: 1649140.69 | DI14: 1649140.69 | DJ14: 1650780.6 | DK14: 1668046.13 | DL14: 1682062.82 | DM14: 1688357.68 | DN14: 1704314.03 | DO14: 1708344.9 | DP14: 1726103.04 | DQ14: 1726103.04 | DR14: 1739569.19 | DS14: 1744395.18 | DT14: 1752639.18 | DU14: 1782102.12 | DV14: 1797846.06 | DW14: 1809188.55 | DX14: 1820715.25 | DY14: 1855638.95 | DZ14: 1873053.86 | EA14: 1881634.5 | EB14: 1895544.87 | EC14: 1925884.34 | ED14: 1953453.11 | EE14: 1972798.29 | EF14: 1994730.81 | EG14: 2003153.44 | EH14: 2011989.1 | EI14: 2023756.13 | EJ14: 2052733.15 | EK14: 2084845.33 | EL14: 2098239.32 | EM14: 2105537.55 | EN14: 2106528.78 | EO14: 2111917.85 | EP14: 2129217.79 | EQ14: 2164593.62 | ER14: 2194526.21 | ES14: 2194526.21 | ET14: 2220946.25 | EU14: 2221720.16 | EV14: 2268465.05 | EW14: 2270759.71 | EX14: 2287081.17 | EY14: 2303715.47 | EZ14: 2315043.69 | FA14: 2326241.43 | FB14: 2333400.81 | FC14: 2334567.6 | FD14: 2343579.63
B15: 2012-05-12 | C15: 9948.41 | D15: Cust_0004 | E15: 201205 | Q15: Cust_0004 | R15: 4813.1 | S15: 12574.15 | T15: 40949.02 | U15: 45757.2 | V15: 49231.53 | W15: 63000.14 | X15: 66367.49 | Y15: 75538.74 | Z15: 89273.76 | AA15: 107618.19 | AB15: 114733.17 | AC15: 148989.45 | AD15: 175689.41 | AE15: 211237.66 | AF15: 230895.32 | AG15: 248837.54 | AH15: 273499.92 | AI15: 278763.31 | AJ15: 285549.99 | AK15: 291845.39 | AL15: 305299.84 | AM15: 339882.38 | AN15: 339882.38 | AO15: 361405.2 | AP15: 366869.38 | AQ15: 366904.26 | AR15: 402308.29 | AS15: 408938.97 | AT15: 438121.5 | AU15: 454455.13 | AV15: 454455.13 | AW15: 461432.93 | AX15: 477605.53 | AY15: 487475.45 | AZ15: 500424.52 | BA15: 505124.45 | BB15: 544158.67 | BC15: 551823.68 | BD15: 573222.83 | BE15: 596718.92 | BF15: 606528.35 | BG15: 616295.91 | BH15: 631225.81 | BI15: 660722.48 | BJ15: 674262.71 | BK15: 680868.28 | BL15: 709726.31 | BM15: 718841.03 | BN15: 719778.92 | BO15: 723610.22 | BP15: 740276.3 | BQ15: 777834.28 | BR15: 779699.12 | BS15: 789551.58 | BT15: 809069.36 | BU15: 831298.06 | BV15: 837009.52 | BW15: 858994.97 | BX15: 879528.37 | BY15: 907089.69 | BZ15: 927722.05 | CA15: 929617.37 | CB15: 929617.37 | CC15: 938891.88 | CD15: 952412.39 | CE15: 952412.39 | CF15: 969770.47 | CG15: 982787.18 | CH15: 989130.51 | CI15: 1018160.4 | CJ15: 1055148.29 | CK15: 1055148.29 | CL15: 1089360.79 | CM15: 1097338.58 | CN15: 1114400.93 | CO15: 1143991.27 | CP15: 1143991.27 | CQ15: 1157763.96 | CR15: 1166627.42 | CS15: 1176669.49 | CT15: 1201957.39 | CU15: 1228826.45 | CV15: 1245126.84 | CW15: 1254687.11 | CX15: 1257721.46 | CY15: 1272180.88 | CZ15: 1296575.55 | DA15: 1308358.87 | DB15: 1324209.88 | DC15: 1331492.13 | DD15: 1360978.01 | DE15: 1366924.68 | DF15: 1376650.89 | DG15: 1385070.34 | DH15: 1402265.7 | DI15: 1429528.62 | DJ15: 1443466 | DK15: 1471298.52 | DL15: 1491797.53 | DM15: 1497595.04 | DN15: 1502177.02 | DO15: 1525954.53 | DP15: 1531570.44 | DQ15: 1544063.77 | DR15: 1555165.37 | DS15: 1574718.87 | DT15: 1601349.26 | DU15: 1635464.4 | DV15: 1651409.74 | DW15: 1658760.37 | DX15: 1678731.19 | DY15: 1699814.84 | DZ15: 1716120.7 | EA15: 1724235.88 | EB15: 1755141.15 | EC15: 1758476.02 | ED15: 1769165.73 | EE15: 1782095.31 | EF15: 1801838.2 | EG15: 1801838.2 | EH15: 1820605.09 | EI15: 1851867.82 | EJ15: 1866460.47 | EK15: 1866460.47 | EL15: 1891021.95 | EM15: 1925341.58 | EN15: 1939406.92 | EO15: 1961743.04 | EP15: 1978120.83 | EQ15: 2019487.62 | ER15: 2035666.88 | ES15: 2044028.52 | ET15: 2051140.31 | EU15: 2078127.1 | EV15: 2088653.46 | EW15: 2106768.8 | EX15: 2123919.5 | EY15: 2127784.78 | EZ15: 2152451.19 | FA15: 2166799.03 | FB15: 2182430.17 | FC15: 2188844.3 | FD15: 2203125.89
B16: 2012-05-12 | C16: 1321.75 | D16: Cust_0004 | E16: 201205 | Q16: Cust_0005 | R16: 5400.61 | S16: 15073.4 | T16: 33239.23 | U16: 33239.23 | V16: 39828.84 | W16: 40525.21 | X16: 56093.44 | Y16: 63012.35 | Z16: 67036.35 | AA16: 68101.01 | AB16: 68101.01 | AC16: 75866.04 | AD16: 83611.65 | AE16: 92309.42 | AF16: 92309.42 | AG16: 97917.35 | AH16: 114216.34 | AI16: 125132.75 | AJ16: 150668.82 | AK16: 151054.41 | AL16: 158831.86 | AM16: 166050.63 | AN16: 176751.16 | AO16: 179008.32 | AP16: 179008.32 | AQ16: 183546.26 | AR16: 202077.41 | AS16: 213548.65 | AT16: 218012.56 | AU16: 231159.66 | AV16: 235327.7 | AW16: 244101.47 | AX16: 244101.47 | AY16: 251341.44 | AZ16: 251341.44 | BA16: 251341.44 | BB16: 257862.53 | BC16: 257862.53 | BD16: 278004.67 | BE16: 278004.67 | BF16: 286575.12 | BG16: 291951.49 | BH16: 295783.65 | BI16: 296723.59 | BJ16: 301740.51 | BK16: 301740.51 | BL16: 309062.55 | BM16: 314447.21 | BN16: 323050.4 | BO16: 338026.43 | BP16: 371837.65 | BQ16: 371837.65 | BR16: 376942.75 | BS16: 376942.75 | BT16: 385785.08 | BU16: 397588.12 | BV16: 397588.12 | BW16: 397588.12 | BX16: 400815.61 | BY16: 410746.88 | BZ16: 419360.72 | CA16: 428430.54 | CB16: 436509.62 | CC16: 442768.28 | CD16: 450588.41 | CE16: 453725.97 | CF16: 453962.23 | CG16: 470566.28 | CH16: 470566.28 | CI16: 473307.85 | CJ16: 473307.85 | CK16: 484876.76 | CL16: 499575.41 | CM16: 507380.04 | CN16: 507380.04 | CO16: 521277.19 | CP16: 521277.19 | CQ16: 523648.74 | CR16: 523648.74 | CS16: 536748.84 | CT16: 542165.74 | CU16: 542165.74 | CV16: 558556.7 | CW16: 558556.7 | CX16: 569774.9 | CY16: 570588.67 | CZ16: 577326.76 | DA16: 585323.41 | DB16: 603482.49 | DC16: 615961.37 | DD16: 626654.19 | DE16: 626654.19 | DF16: 635131.85 | DG16: 647327.22 | DH16: 656286.41 | DI16: 658635.04 | DJ16: 659938.8 | DK16: 668928.92 | DL16: 668928.92 | DM16: 690800.41 | DN16: 692263.39 | DO16: 704900.37 | DP16: 730731.32 | DQ16: 730731.32 | DR16: 739677.12 | DS16: 743770.21 | DT16: 743770.21 | DU16: 743770.21 | DV16: 752094.44 | DW16: 769052.61 | DX16: 784630.87 | DY16: 789666.35 | DZ16: 801264.86 | EA16: 803562.56 | EB16: 803562.56 | EC16: 813726.44 | ED16: 821095.8 | EE16: 821095.8 | EF16: 840488.94 | EG16: 840488.94 | EH16: 843482.11 | EI16: 843482.11 | EJ16: 843482.11 | EK16: 848304.07 | EL16: 856672.6 | EM16: 864695.43 | EN16: 872322.01 | EO16: 876286.57 | EP16: 885155.33 | EQ16: 905130.26 | ER16: 925272.76 | ES16: 938997.7 | ET16: 948750.02 | EU16: 959867.12 | EV16: 966841.35 | EW16: 968736.56 | EX16: 973341.76 | EY16: 987011.22 | EZ16: 1004290.27 | FA16: 1009671.11 | FB16: 1018365.54 | FC16: 1025770.31 | FD16: 1025770.31
B17: 2012-05-07 | C17: 9482.96 | D17: Cust_0002 | E17: 201205 | Q17: Grand Total | R17: 32342.12 | S17: 87189.13 | T17: 165575 | U17: 211587.58 | V17: 257590.81 | W17: 316289.07 | X17: 372152.93 | Y17: 408605.31 | Z17: 459982.33 | AA17: 506804.11 | AB17: 574266.13 | AC17: 666558.63 | AD17: 741012.71 | AE17: 843146.38 | AF17: 898943.64 | AG17: 973577.83 | AH17: 1048493.65 | AI17: 1089486.7 | AJ17: 1195032.49 | AK17: 1224436.13 | AL17: 1314736.12 | AM17: 1388944.54 | AN17: 1464422.81 | AO17: 1534547.83 | AP17: 1594162.62 | AQ17: 1621470.63 | AR17: 1718682.81 | AS17: 1780436.01 | AT17: 1829166.25 | AU17: 1918603.3 | AV17: 1949670.47 | AW17: 1989462.98 | AX17: 2074339.02 | AY17: 2144168.03 | AZ17: 2205951.63 | BA17: 2242363.29 | BB17: 2321587.59 | BC17: 2348442.05 | BD17: 2419078.65 | BE17: 2472967.76 | BF17: 2511911.17 | BG17: 2593359.25 | BH17: 2661634.37 | BI17: 2727513.92 | BJ17: 2780658.38 | BK17: 2837243.77 | BL17: 2892940.82 | BM17: 2940825.64 | BN17: 2992769.57 | BO17: 3046142.35 | BP17: 3156424.37 | BQ17: 3217165.3 | BR17: 3253647.75 | BS17: 3338102.12 | BT17: 3411388.39 | BU17: 3485135.61 | BV17: 3517439.42 | BW17: 3576801.43 | BX17: 3629479.56 | BY17: 3691830.26 | BZ17: 3766124.21 | CA17: 3839697.25 | CB17: 3884879.09 | CC17: 3938840.65 | CD17: 3996859.32 | CE17: 4068660.3 | CF17: 4134859.05 | CG17: 4215598.74 | CH17: 4286392.98 | CI17: 4350918.25 | CJ17: 4468311.58 | CK17: 4520926.97 | CL17: 4609538.85 | CM17: 4714780.53 | CN17: 4792278.13 | CO17: 4872209.52 | CP17: 4909243.24 | CQ17: 4959344.95 | CR17: 5010374 | CS17: 5089374.64 | CT17: 5154139.17 | CU17: 5197566.07 | CV17: 5262964.56 | CW17: 5310309.92 | CX17: 5343931.36 | CY17: 5389216.72 | CZ17: 5434449.14 | DA17: 5479820.88 | DB17: 5543243.55 | DC17: 5611085.47 | DD17: 5702613.76 | DE17: 5749665.73 | DF17: 5787003.05 | DG17: 5857796.43 | DH17: 5910878.74 | DI17: 5947052.37 | DJ17: 5980477.05 | DK17: 6044983.66 | DL17: 6115396.19 | DM17: 6171506.61 | DN17: 6227943.29 | DO17: 6299060.48 | DP17: 6372602.03 | DQ17: 6434515.48 | DR17: 6471244.74 | DS17: 6520264.7 | DT17: 6578070.96 | DU17: 6677442.82 | DV17: 6733348.26 | DW17: 6799681.82 | DX17: 6861165.55 | DY17: 6946940.76 | DZ17: 7004618.98 | EA17: 7042394.73 | EB17: 7117950.22 | EC17: 7171232.24 | ED17: 7239266.27 | EE17: 7325506.06 | EF17: 7410013.46 | EG17: 7467548.26 | EH17: 7520592.55 | EI17: 7586690.51 | EJ17: 7638211.6 | EK17: 7703977.81 | EL17: 7772745.37 | EM17: 7836404.19 | EN17: 7887775.48 | EO17: 7938092.99 | EP17: 8021674.49 | EQ17: 8162756.06 | ER17: 8268305.5 | ES17: 8307249.4 | ET17: 8359409.37 | EU17: 8403909.75 | EV17: 8500332.62 | EW17: 8537752.37 | EX17: 8584849.65 | EY17: 8654427.17 | EZ17: 8750892.37 | FA17: 8836816.21 | FB17: 8878966.94 | FC17: 8927073.17 | FD17: 8990944.49
B18: 2012-05-07 | C18: 9012.03 | D18: Cust_0003 | E18: 201205
B19: 2012-05-02 | C19: 9218.92 | D19: Cust_0001 | E19: 201205
B20: 2012-04-27 | C20: 2202.07 | D20: Cust_0002 | E20: 201204
B21: 2012-04-27 | C21: 7404.77 | D21: Cust_0005 | E21: 201204
B22: 2012-04-27 | C22: 113.17 | D22: Cust_0004 | E22: 201204
B23: 2012-04-27 | C23: 6754.5 | D23: Cust_0002 | E23: 201204
B24: 2012-04-27 | C24: 9485.3 | D24: Cust_0002 | E24: 201204
B25: 2012-04-27 | C25: 6300.96 | D25: Cust_0004 | E25: 201204
B26: 2012-04-22 | C26: 246.06 | D26: Cust_0003 | E26: 201204
B27: 2012-04-17 | C27: 4251.55 | D27: Cust_0002 | E27: 201204
B28: 2012-04-17 | C28: 1559.19 | D28: Cust_0001 | E28: 201204
B29: 2012-04-17 | C29: 1293.62 | D29: Cust_0002 | E29: 201204
B30: 2012-04-12 | C30: 159.55 | D30: Cust_0003 | E30: 201204
B31: 2012-04-07 | C31: 761.18 | D31: Cust_0003 | E31: 201204
B32: 2012-04-02 | C32: 7574.31 | D32: Cust_0001 | E32: 201204
B33: 2012-03-28 | C33: 6852.84 | D33: Cust_0005 | E33: 201203
B34: 2012-03-28 | C34: 3829.11 | D34: Cust_0002 | E34: 201203
B35: 2012-03-23 | C35: 1841.59 | D35: Cust_0005 | E35: 201203
B36: 2012-03-18 | C36: 7159.38 | D36: Cust_0003 | E36: 201203
B37: 2012-03-13 | C37: 6046.22 | D37: Cust_0001 | E37: 201203
B38: 2012-03-13 | C38: 790.45 | D38: Cust_0001 | E38: 201203
B39: 2012-03-08 | C39: 6317.14 | D39: Cust_0004 | E39: 201203
B40: 2012-03-08 | C40: 2703.48 | D40: Cust_0004 | E40: 201203
B41: 2012-03-03 | C41: 6610.52 | D41: Cust_0004 | E41: 201203
B42: 2012-02-27 | C42: 8141.97 | D42: Cust_0002 | E42: 201202
B43: 2012-02-27 | C43: 1793.8 | D43: Cust_0002 | E43: 201202
B44: 2012-02-22 | C44: 952.81 | D44: Cust_0002 | E44: 201202
B45: 2012-02-22 | C45: 2994.38 | D45: Cust_0005 | E45: 201202
B46: 2012-02-22 | C46: 1902.05 | D46: Cust_0001 | E46: 201202
B47: 2012-02-22 | C47: 5945.52 | D47: Cust_0004 | E47: 201202
B48: 2012-02-22 | C48: 8402.32 | D48: Cust_0004 | E48: 201202
B49: 2012-02-22 | C49: 8437.91 | D49: Cust_0001 | E49: 201202
B50: 2012-02-22 | C50: 8573.94 | D50: Cust_0002 | E50: 201202
B51: 2012-02-22 | C51: 3418.99 | D51: Cust_0002 | E51: 201202
B52: 2012-02-22 | C52: 9766.02 | D52: Cust_0002 | E52: 201202
B53: 2012-02-17 | C53: 1752.32 | D53: Cust_0002 | E53: 201202
B54: 2012-02-12 | C54: 263.84 | D54: Cust_0001 | E54: 201202
B55: 2012-02-07 | C55: 6158.64 | D55: Cust_0003 | E55: 201202
B56: 2012-02-07 | C56: 5039.1 | D56: Cust_0003 | E56: 201202
B57: 2012-02-07 | C57: 1168.7 | D57: Cust_0002 | E57: 201202
B58: 2012-02-07 | C58: 2386.46 | D58: Cust_0005 | E58: 201202
B59: 2012-02-02 | C59: 239.44 | D59: Cust_0001 | E59: 201202
B60: 2012-02-02 | C60: 8585.63 | D60: Cust_0002 | E60: 201202
B61: 2012-01-28 | C61: 8004.06 | D61: Cust_0005 | E61: 201201
B62: 2012-01-28 | C62: 9873.14 | D62: Cust_0004 | E62: 201201
B63: 2012-01-28 | C63: 2328.36 | D63: Cust_0002 | E63: 201201
B64: 2012-01-23 | C64: 1369.55 | D64: Cust_0003 | E64: 201201
B65: 2012-01-18 | C65: 4242.4 | D65: Cust_0002 | E65: 201201
B66: 2012-01-18 | C66: 4244.88 | D66: Cust_0005 | E66: 201201
B67: 2012-01-18 | C67: 7528.32 | D67: Cust_0002 | E67: 201201
B68: 2012-01-18 | C68: 5030.11 | D68: Cust_0005 | E68: 201201
B69: 2012-01-18 | C69: 7136.55 | D69: Cust_0004 | E69: 201201
B70: 2012-01-13 | C70: 5122.29 | D70: Cust_0002 | E70: 201201
B71: 2012-01-13 | C71: 9958.67 | D71: Cust_0003 | E71: 201201
B72: 2012-01-13 | C72: 8161.98 | D72: Cust_0002 | E72: 201201
B73: 2012-01-13 | C73: 5148.37 | D73: Cust_0004 | E73: 201201
B74: 2012-01-08 | C74: 2827.9 | D74: Cust_0002 | E74: 201201
B75: 2012-01-03 | C75: 3261.53 | D75: Cust_0002 | E75: 201201
B76: 2012-01-03 | C76: 866.68 | D76: Cust_0002 | E76: 201201
B77: 2012-01-03 | C77: 2508.35 | D77: Cust_0004 | E77: 201201
B78: 2012-01-03 | C78: 8852.06 | D78: Cust_0002 | E78: 201201
B79: 2011-12-29 | C79: 1503.34 | D79: Cust_0004 | E79: 201112
B80: 2011-12-29 | C80: 9366.21 | D80: Cust_0005 | E80: 201112
B81: 2011-12-29 | C81: 9171.51 | D81: Cust_0002 | E81: 201112
B82: 2011-12-24 | C82: 1527.37 | D82: Cust_0004 | E82: 201112
B83: 2011-12-24 | C83: 834.57 | D83: Cust_0004 | E83: 201112
B84: 2011-12-19 | C84: 8136.01 | D84: Cust_0002 | E84: 201112
B85: 2011-12-19 | C85: 4303.25 | D85: Cust_0005 | E85: 201112
B86: 2011-12-19 | C86: 3203.89 | D86: Cust_0002 | E86: 201112
B87: 2011-12-14 | C87: 6946.24 | D87: Cust_0001 | E87: 201112
B88: 2011-12-09 | C88: 1561.36 | D88: Cust_0001 | E88: 201112
B89: 2011-12-09 | C89: 9911.36 | D89: Cust_0003 | E89: 201112
B90: 2011-12-04 | C90: 6722.94 | D90: Cust_0003 | E90: 201112
B91: 2011-12-04 | C91: 6389.47 | D91: Cust_0001 | E91: 201112
B92: 2011-11-29 | C92: 4086.2 | D92: Cust_0004 | E92: 201111
B93: 2011-11-24 | C93: 4605.2 | D93: Cust_0005 | E93: 201111
B94: 2011-11-19 | C94: 8920.39 | D94: Cust_0003 | E94: 201111
B95: 2011-11-19 | C95: 9019.92 | D95: Cust_0001 | E95: 201111
B96: 2011-11-19 | C96: 5025.15 | D96: Cust_0003 | E96: 201111
B97: 2011-11-14 | C97: 5143.29 | D97: Cust_0004 | E97: 201111
B98: 2011-11-14 | C98: 2375.92 | D98: Cust_0003 | E98: 201111
B99: 2011-11-14 | C99: 4116.48 | D99: Cust_0004 | E99: 201111
B100: 2011-11-09 | C100: 520.63 | D100: Cust_0004 | E100: 201111
B101: 2011-11-09 | C101: 975.65 | D101: Cust_0004 | E101: 201111
B102: 2011-11-04 | C102: 2308.45 | D102: Cust_0004 | E102: 201111
B103: 2011-10-30 | C103: 1107.92 | D103: Cust_0002 | E103: 201110
B104: 2011-10-30 | C104: 3707.08 | D104: Cust_0001 | E104: 201110
B105: 2011-10-25 | C105: 6439.43 | D105: Cust_0002 | E105: 201110
B106: 2011-10-25 | C106: 2294.66 | D106: Cust_0003 | E106: 201110
B107: 2011-10-20 | C107: 208.68 | D107: Cust_0005 | E107: 201110
B108: 2011-10-20 | C108: 3860.11 | D108: Cust_0002 | E108: 201110
B109: 2011-10-20 | C109: 7134.49 | D109: Cust_0004 | E109: 201110
B110: 2011-10-15 | C110: 6836.44 | D110: Cust_0004 | E110: 201110
B111: 2011-10-10 | C111: 4144.41 | D111: Cust_0004 | E111: 201110
B112: 2011-10-05 | C112: 1686.53 | D112: Cust_0005 | E112: 201110
B113: 2011-09-30 | C113: 4380.83 | D113: Cust_0002 | E113: 201109
B114: 2011-09-30 | C114: 8197.93 | D114: Cust_0002 | E114: 201109
B115: 2011-09-25 | C115: 8352.3 | D115: Cust_0003 | E115: 201109
B116: 2011-09-25 | C116: 4780.05 | D116: Cust_0003 | E116: 201109
B117: 2011-09-25 | C117: 9005.22 | D117: Cust_0001 | E117: 201109
B118: 2011-09-20 | C118: 9603.9 | D118: Cust_0003 | E118: 201109
B119: 2011-09-20 | C119: 7981.14 | D119: Cust_0004 | E119: 201109
B120: 2011-09-15 | C120: 7655.66 | D120: Cust_0003 | E120: 201109
B121: 2011-09-10 | C121: 6178.49 | D121: Cust_0001 | E121: 201109
B122: 2011-09-10 | C122: 2120.07 | D122: Cust_0002 | E122: 201109
B123: 2011-09-10 | C123: 6974.23 | D123: Cust_0005 | E123: 201109
B124: 2011-09-05 | C124: 8902.14 | D124: Cust_0003 | E124: 201109
B125: 2011-09-05 | C125: 2545.22 | D125: Cust_0004 | E125: 201109
B126: 2011-09-05 | C126: 7450.84 | D126: Cust_0003 | E126: 201109
B127: 2011-09-05 | C127: 2294.85 | D127: Cust_0001 | E127: 201109
B128: 2011-08-31 | C128: 9327.93 | D128: Cust_0004 | E128: 201108
B129: 2011-08-26 | C129: 2296.74 | D129: Cust_0004 | E129: 201108
B130: 2011-08-26 | C130: 698.4 | D130: Cust_0002 | E130: 201108
B131: 2011-08-26 | C131: 7208.17 | D131: Cust_0005 | E131: 201108
B132: 2011-08-21 | C132: 3121.43 | D132: Cust_0001 | E132: 201108
B133: 2011-08-16 | C133: 6860.33 | D133: Cust_0004 | E133: 201108
B134: 2011-08-11 | C134: 1260.63 | D134: Cust_0002 | E134: 201108
B135: 2011-08-06 | C135: 2096.01 | D135: Cust_0004 | E135: 201108
B136: 2011-08-06 | C136: 773.91 | D136: Cust_0003 | E136: 201108
B137: 2011-08-01 | C137: 3908.93 | D137: Cust_0005 | E137: 201108
B138: 2011-08-01 | C138: 6405.78 | D138: Cust_0004 | E138: 201108
B139: 2011-08-01 | C139: 542.12 | D139: Cust_0002 | E139: 201108
B140: 2011-07-27 | C140: 4951.3 | D140: Cust_0003 | E140: 201107
B141: 2011-07-27 | C141: 5784.4 | D141: Cust_0002 | E141: 201107
B142: 2011-07-27 | C142: 3091.42 | D142: Cust_0001 | E142: 201107
B143: 2011-07-22 | C143: 1013.61 | D143: Cust_0005 | E143: 201107
B144: 2011-07-22 | C144: 5974.3 | D144: Cust_0004 | E144: 201107
B145: 2011-07-22 | C145: 5328.26 | D145: Cust_0003 | E145: 201107
B146: 2011-07-17 | C146: 8738.71 | D146: Cust_0005 | E146: 201107
B147: 2011-07-12 | C147: 7903.51 | D147: Cust_0003 | E147: 201107
B148: 2011-07-07 | C148: 5580.11 | D148: Cust_0003 | E148: 201107
B149: 2011-07-07 | C149: 2656.86 | D149: Cust_0003 | E149: 201107
B150: 2011-07-02 | C150: 1137.49 | D150: Cust_0004 | E150: 201107
B151: 2011-06-27 | C151: 2163.29 | D151: Cust_0004 | E151: 201106
B152: 2011-06-22 | C152: 3964.36 | D152: Cust_0002 | E152: 201106
B153: 2011-06-22 | C153: 9501.38 | D153: Cust_0005 | E153: 201106
B154: 2011-06-17 | C154: 2032.41 | D154: Cust_0001 | E154: 201106
B155: 2011-06-17 | C155: 9369.47 | D155: Cust_0001 | E155: 201106
B156: 2011-06-12 | C156: 4428.76 | D156: Cust_0004 | E156: 201106
B157: 2011-06-07 | C157: 413.13 | D157: Cust_0002 | E157: 201106
B158: 2011-06-02 | C158: 4223.56 | D158: Cust_0005 | E158: 201106
B159: 2011-06-02 | C159: 1077.95 | D159: Cust_0002 | E159: 201106
B160: 2011-06-02 | C160: 1769.59 | D160: Cust_0004 | E160: 201106
B161: 2011-05-28 | C161: 8303.64 | D161: Cust_0002 | E161: 201105
B162: 2011-05-28 | C162: 7311.28 | D162: Cust_0003 | E162: 201105
B163: 2011-05-23 | C163: 6470.61 | D163: Cust_0003 | E163: 201105
B164: 2011-05-23 | C164: 6502.91 | D164: Cust_0001 | E164: 201105
B165: 2011-05-23 | C165: 9428.28 | D165: Cust_0004 | E165: 201105
B166: 2011-05-23 | C166: 8625.59 | D166: Cust_0001 | E166: 201105
B167: 2011-05-23 | C167: 8675.79 | D167: Cust_0003 | E167: 201105
B168: 2011-05-23 | C168: 1754.1 | D168: Cust_0005 | E168: 201105
B169: 2011-05-18 | C169: 7474.91 | D169: Cust_0003 | E169: 201105
B170: 2011-05-13 | C170: 3839.65 | D170: Cust_0001 | E170: 201105
B171: 2011-05-13 | C171: 6024.95 | D171: Cust_0004 | E171: 201105
B172: 2011-05-13 | C172: 9174.9 | D172: Cust_0001 | E172: 201105
B173: 2011-05-08 | C173: 9913.18 | D173: Cust_0005 | E173: 201105
B174: 2011-05-08 | C174: 726.03 | D174: Cust_0004 | E174: 201105
B175: 2011-05-08 | C175: 7245.97 | D175: Cust_0005 | E175: 201105
B176: 2011-05-03 | C176: 1229.25 | D176: Cust_0005 | E176: 201105
B177: 2011-05-03 | C177: 2848.4 | D177: Cust_0002 | E177: 201105
B178: 2011-04-28 | C178: 8805.12 | D178: Cust_0004 | E178: 201104
B179: 2011-04-28 | C179: 6450.42 | D179: Cust_0005 | E179: 201104
B180: 2011-04-28 | C180: 4976.55 | D180: Cust_0001 | E180: 201104
B181: 2011-04-28 | C181: 6547.48 | D181: Cust_0001 | E181: 201104
B182: 2011-04-23 | C182: 290.45 | D182: Cust_0003 | E182: 201104
B183: 2011-04-23 | C183: 5582.48 | D183: Cust_0005 | E183: 201104
B184: 2011-04-18 | C184: 1350.96 | D184: Cust_0005 | E184: 201104
B185: 2011-04-18 | C185: 1945.97 | D185: Cust_0003 | E185: 201104
B186: 2011-04-18 | C186: 9572.2 | D186: Cust_0004 | E186: 201104
B187: 2011-04-18 | C187: 7245.8 | D187: Cust_0002 | E187: 201104
B188: 2011-04-18 | C188: 1014.92 | D188: Cust_0004 | E188: 201104
B189: 2011-04-18 | C189: 5768.42 | D189: Cust_0003 | E189: 201104
B190: 2011-04-18 | C190: 5466.33 | D190: Cust_0003 | E190: 201104
B191: 2011-04-18 | C191: 456.1 | D191: Cust_0003 | E191: 201104
B192: 2011-04-13 | C192: 8142.13 | D192: Cust_0004 | E192: 201104
B193: 2011-04-13 | C193: 6648.38 | D193: Cust_0003 | E193: 201104
B194: 2011-04-13 | C194: 6591.07 | D194: Cust_0005 | E194: 201104
B195: 2011-04-13 | C195: 3005.07 | D195: Cust_0004 | E195: 201104
B196: 2011-04-08 | C196: 148.56 | D196: Cust_0001 | E196: 201104
B197: 2011-04-08 | C197: 7866.69 | D197: Cust_0002 | E197: 201104
B198: 2011-04-08 | C198: 6357.28 | D198: Cust_0002 | E198: 201104
B199: 2011-04-08 | C199: 2774.39 | D199: Cust_0004 | E199: 201104
B200: 2011-04-08 | C200: 5933.76 | D200: Cust_0003 | E200: 201104
B201: 2011-04-03 | C201: 3500.42 | D201: Cust_0002 | E201: 201104
B202: 2011-04-03 | C202: 7721.24 | D202: Cust_0001 | E202: 201104
B203: 2011-04-03 | C203: 8866.42 | D203: Cust_0003 | E203: 201104
B204: 2011-04-03 | C204: 8052.96 | D204: Cust_0004 | E204: 201104
B205: 2011-03-29 | C205: 8382.65 | D205: Cust_0003 | E205: 201103
B206: 2011-03-24 | C206: 9807 | D206: Cust_0002 | E206: 201103
... 1590 more rows

Sheet דוח חכם -אופן הבניה
B2: דוח מכירות לפי לקוח בהשוואה לתקופה מקבילה אשתקד (אלפי ₪, YTD)
B4: תקופת הדוח | C4: 201204
B6: תקופה | C6: =C4 -> 201204 | D6: =period_shift(C6,-12) -> 201104
B7: תקופת השוואה | C7: =ytd_period(C6) -> 201112 | D7: =ytd_period(D6) -> 201012
B8: חלק ב- | C8: 1000 | D8: 1000
B10: בקרה | C10: =ROUND(IFERROR(GETPIVOTDATA("ערך",'תשתית והסברים'!$Q$10,"תקופה",C$6)-IFERROR(GETPIVOTDATA("ערך",'תשתית והסברים'!$Q$10,"תקופה",C$7),0),0)/C$8-C12,6) -> 0 | D10: =ROUND(IFERROR(GETPIVOTDATA("ערך",'תשתית והסברים'!$Q$10,"תקופה",D$6)-IFERROR(GETPIVOTDATA("ערך",'תשתית והסברים'!$Q$10,"תקופה",D$7),0),0)/D$8-D12,6) -> 0 | L10: נ.ב.
L11: אהבתם את הפונצקיות להמרת תאריכים לפורמט Period? הסבר מלא כאן
B12: סה"כ | C12: =SUM(C15:C19) -> 272.646 | D12: =SUM(D15:D19) -> 326.35187
B14: קוד לקוח | C14: ="מכירות "&TEXT(period2date(C4),"mmm-yy")&" YTD" -> מכירות Apr-12 YTD | D14: מכירות בתקופה מקבילה אשתקד | E14: צמיחה
B15: Cust_0001 | C15: =IFERROR(GETPIVOTDATA("ערך",'תשתית והסברים'!$Q$10,"קוד לקוח",$B15,"תקופה",C$6)-IFERROR(GETPIVOTDATA("ערך",'תשתית והסברים'!$Q$10,"קוד לקוח",$B15,"תקופה",C$7),0),0)/C$8 -> 26.81341 | D15: =IFERROR(GETPIVOTDATA("ערך",'תשתית והסברים'!$Q$10,"קוד לקוח",$B15,"תקופה",D$6)-IFERROR(GETPIVOTDATA("ערך",'תשתית והסברים'!$Q$10,"קוד לקוח",$B15,"תקופה",D$7),0),0)/D$8 -> 61.49487 | E15: =IFERROR(C15/D15-1,0) -> -0.5639732225
B16: Cust_0002 | C16: =IFERROR(GETPIVOTDATA("ערך",'תשתית והסברים'!$Q$10,"קוד לקוח",$B16,"תקופה",C$6)-IFERROR(GETPIVOTDATA("ערך",'תשתית והסברים'!$Q$10,"קוד לקוח",$B16,"תקופה",C$7),0),0)/C$8 -> 115.16185 | D16: =IFERROR(GETPIVOTDATA("ערך",'תשתית והסברים'!$Q$10,"קוד לקוח",$B16,"תקופה",D$6)-IFERROR(GETPIVOTDATA("ערך",'תשתית והסברים'!$Q$10,"קוד לקוח",$B16,"תקופה",D$7),0),0)/D$8 -> 71.22006 | E16: =IFERROR(C16/D16-1,0) -> 0.6169861413
B17: Cust_0003 | C17: =IFERROR(GETPIVOTDATA("ערך",'תשתית והסברים'!$Q$10,"קוד לקוח",$B17,"תקופה",C$6)-IFERROR(GETPIVOTDATA("ערך",'תשתית והסברים'!$Q$10,"קוד לקוח",$B17,"תקופה",C$7),0),0)/C$8 -> 30.85213 | D17: =IFERROR(GETPIVOTDATA("ערך",'תשתית והסברים'!$Q$10,"קוד לקוח",$B17,"תקופה",D$6)-IFERROR(GETPIVOTDATA("ערך",'תשתית והסברים'!$Q$10,"קוד לקוח",$B17,"תקופה",D$7),0),0)/D$8 -> 59.05607 | E17: =IFERROR(C17/D17-1,0) -> -0.4775790194
B18: Cust_0004 | C18: =IFERROR(GETPIVOTDATA("ערך",'תשתית והסברים'!$Q$10,"קוד לקוח",$B18,"תקופה",C$6)-IFERROR(GETPIVOTDATA("ערך",'תשתית והסברים'!$Q$10,"קוד לקוח",$B18,"תקופה",C$7),0),0)/C$8 -> 61.05952 | D18: =IFERROR(GETPIVOTDATA("ערך",'תשתית והסברים'!$Q$10,"קוד לקוח",$B18,"תקופה",D$6)-IFERROR(GETPIVOTDATA("ערך",'תשתית והסברים'!$Q$10,"קוד לקוח",$B18,"תקופה",D$7),0),0)/D$8 -> 94.14604 | E18: =IFERROR(C18/D18-1,0) -> -0.3514382549
B19: Cust_0005 | C19: =IFERROR(GETPIVOTDATA("ערך",'תשתית והסברים'!$Q$10,"קוד לקוח",$B19,"תקופה",C$6)-IFERROR(GETPIVOTDATA("ערך",'תשתית והסברים'!$Q$10,"קוד לקוח",$B19,"תקופה",C$7),0),0)/C$8 -> 38.75909 | D19: =IFERROR(GETPIVOTDATA("ערך",'תשתית והסברים'!$Q$10,"קוד לקוח",$B19,"תקופה",D$6)-IFERROR(GETPIVOTDATA("ערך",'תשתית והסברים'!$Q$10,"קוד לקוח",$B19,"תקופה",D$7),0),0)/D$8 -> 40.43483 | E19: =IFERROR(C19/D19-1,0) -> -0.04144298369

Sheet דוח חכם - תוצאה סופית
B2: דוח מכירות לפי לקוח בהשוואה לתקופה מקבילה אשתקד (אלפי ₪, YTD)
B4: תקופת הדוח | C4: 201204
B6: תקופה | C6: =C4 -> 201204 | D6: =period_shift(C6,-12) -> 201104
B7: תקופת השוואה | C7: =ytd_period(C6) -> 201112 | D7: =ytd_period(D6) -> 201012
B8: חלק ב- | C8: 1000 | D8: 1000
B10: בקרה | C10: =ROUND(IFERROR(GETPIVOTDATA("ערך",'תשתית והסברים'!$Q$10,"תקופה",C$6)-IFERROR(GETPIVOTDATA("ערך",'תשתית והסברים'!$Q$10,"תקופה",C$7),0),0)/C$8-C12,6) -> 0 | D10: =ROUND(IFERROR(GETPIVOTDATA("ערך",'תשתית והסברים'!$Q$10,"תקופה",D$6)-IFERROR(GETPIVOTDATA("ערך",'תשתית והסברים'!$Q$10,"תקופה",D$7),0),0)/D$8-D12,6) -> 0
B12: סה"כ | C12: =SUM(C15:C19) -> 272.646 | D12: =SUM(D15:D19) -> 326.35187
B14: קוד לקוח | C14: ="מכירות "&TEXT(period2date(C4),"mmm-yy")&" YTD" -> מכירות Apr-12 YTD | D14: מכירות בתקופה מקבילה אשתקד | E14: צמיחה
B15: Cust_0001 | C15: =IFERROR(GETPIVOTDATA("ערך",'תשתית והסברים'!$Q$10,"קוד לקוח",$B15,"תקופה",C$6)-IFERROR(GETPIVOTDATA("ערך",'תשתית והסברים'!$Q$10,"קוד לקוח",$B15,"תקופה",C$7),0),0)/C$8 -> 26.81341 | D15: =IFERROR(GETPIVOTDATA("ערך",'תשתית והסברים'!$Q$10,"קוד לקוח",$B15,"תקופה",D$6)-IFERROR(GETPIVOTDATA("ערך",'תשתית והסברים'!$Q$10,"קוד לקוח",$B15,"תקופה",D$7),0),0)/D$8 -> 61.49487 | E15: =IFERROR(C15/D15-1,0) -> -0.5639732225
B16: Cust_0002 | C16: =IFERROR(GETPIVOTDATA("ערך",'תשתית והסברים'!$Q$10,"קוד לקוח",$B16,"תקופה",C$6)-IFERROR(GETPIVOTDATA("ערך",'תשתית והסברים'!$Q$10,"קוד לקוח",$B16,"תקופה",C$7),0),0)/C$8 -> 115.16185 | D16: =IFERROR(GETPIVOTDATA("ערך",'תשתית והסברים'!$Q$10,"קוד לקוח",$B16,"תקופה",D$6)-IFERROR(GETPIVOTDATA("ערך",'תשתית והסברים'!$Q$10,"קוד לקוח",$B16,"תקופה",D$7),0),0)/D$8 -> 71.22006 | E16: =IFERROR(C16/D16-1,0) -> 0.6169861413
B17: Cust_0003 | C17: =IFERROR(GETPIVOTDATA("ערך",'תשתית והסברים'!$Q$10,"קוד לקוח",$B17,"תקופה",C$6)-IFERROR(GETPIVOTDATA("ערך",'תשתית והסברים'!$Q$10,"קוד לקוח",$B17,"תקופה",C$7),0),0)/C$8 -> 30.85213 | D17: =IFERROR(GETPIVOTDATA("ערך",'תשתית והסברים'!$Q$10,"קוד לקוח",$B17,"תקופה",D$6)-IFERROR(GETPIVOTDATA("ערך",'תשתית והסברים'!$Q$10,"קוד לקוח",$B17,"תקופה",D$7),0),0)/D$8 -> 59.05607 | E17: =IFERROR(C17/D17-1,0) -> -0.4775790194
B18: Cust_0004 | C18: =IFERROR(GETPIVOTDATA("ערך",'תשתית והסברים'!$Q$10,"קוד לקוח",$B18,"תקופה",C$6)-IFERROR(GETPIVOTDATA("ערך",'תשתית והסברים'!$Q$10,"קוד לקוח",$B18,"תקופה",C$7),0),0)/C$8 -> 61.05952 | D18: =IFERROR(GETPIVOTDATA("ערך",'תשתית והסברים'!$Q$10,"קוד לקוח",$B18,"תקופה",D$6)-IFERROR(GETPIVOTDATA("ערך",'תשתית והסברים'!$Q$10,"קוד לקוח",$B18,"תקופה",D$7),0),0)/D$8 -> 94.14604 | E18: =IFERROR(C18/D18-1,0) -> -0.3514382549
B19: Cust_0005 | C19: =IFERROR(GETPIVOTDATA("ערך",'תשתית והסברים'!$Q$10,"קוד לקוח",$B19,"תקופה",C$6)-IFERROR(GETPIVOTDATA("ערך",'תשתית והסברים'!$Q$10,"קוד לקוח",$B19,"תקופה",C$7),0),0)/C$8 -> 38.75909 | D19: =IFERROR(GETPIVOTDATA("ערך",'תשתית והסברים'!$Q$10,"קוד לקוח",$B19,"תקופה",D$6)-IFERROR(GETPIVOTDATA("ערך",'תשתית והסברים'!$Q$10,"קוד לקוח",$B19,"תקופה",D$7),0),0)/D$8 -> 40.43483 | E19: =IFERROR(C19/D19-1,0) -> -0.04144298369
